bitfinex/quotes_ETHUSD_20250328
["timestamp","ask_amount","ask_price","bid_price","bid_amount"]
[1743137607866,11.89415295,1934.5,1934.2,10.33986]
[1743137608049,11.89415295,1934.5,1934.2,5.1699]
[1743137608247,11.89415295,1934.5,1934.1,0.05]
[1743137608961,13.18772779,1934.5,1934.1,5.22032]
[1743137609157,11.89415295,1934.5,1934.1,10.39051]
[1743137609358,11.89415295,1934.5,1934.1,5.22019]
[1743137609534,11.89415295,1934.5,1934.1,0.05]
[1743137609735,11.89415295,1934.5,1934.1,5.22035]
[1743137609948,4.01215295,1934.5,1934.2,5.16997]
[1743137610154,7.877,1934.4,1934.3,5.16982]
[1743137610459,7.877,1934.4,1934.2,5.16991]
[1743137610865,11.88915295,1934.4,1934.1,0.05]
[1743137611066,12.67685295,1934.4,1934.1,0.05]
[1743137611238,4.01215295,1934.2,1934.1,0.05]
[1743137611969,7.01215295,1934.2,1934.1,0.05]
[1743137612172,0.55,1934.1,1933.2,0.005]
[1743137612460,4.01215295,1933.6,1933.2,0.005]
[1743137612671,4.01215295,1933.4,1933.2,0.005]
[1743137613240,7.875,1933.5,1933.2,0.005]
[1743137613466,7.875,1933.5,1933.2,5.17776]
[1743137613635,7.875,1933.5,1933.2,5.17766]
[1743137614036,4.01215295,1933.4,1933.2,5.17766]
[1743137614335,4.01215295,1933.4,1933.2,5.17757]
[1743137614754,4.01215295,1933.4,1933.2,0.005]
[1743137615074,0.4012153,1933.6,1933.5,5.17196]
[1743137615266,7.873,1933.6,1933.4,5.17205]
[1743137615455,7.873,1933.6,1933.2,5.17775]
[1743137615660,7.873,1933.6,1933.3,5.17234]
[1743137616061,9.0615153,1933.6,1933.2,5.1776]
[1743137616440,4.01215295,1933.5,1933.2,0.005]
[1743137616968,4.01215295,1933.5,1933.2,5.17775]
[1743137617370,8.91101419,1933.6,1933.3,5.17239]
[1743137617589,1.03801419,1933.6,1933.4,5.17207]
[1743137617742,8.91101419,1933.6,1933.5,5.17196]
[1743137618067,7.873,1933.6,1933.4,5.17207]
[1743137618283,8.6603,1933.6,1933.2,5.17759]
[1743137618451,8.6603,1933.6,1933.3,5.17233]
[1743137618785,7.873,1933.6,1933.3,5.17229]
[1743137619451,7.873,1933.6,1933.2,10.35052]
[1743137619651,7.873,1933.6,1933.3,5.17245]
[1743137619970,7.873,1933.6,1933.4,5.17213]
[1743137620366,7.873,1933.6,1933.4,5.22384577]
[1743137620562,1.03033979,1933.9,1933.7,5.17124]
[1743137620874,7.871,1933.8,1933.7,5.17124]
[1743137621072,7.871,1933.8,1933.6,5.17169]
[1743137621370,7.871,1933.8,1933.5,6.83703]
[1743137621371,8.76113398,1933.8,1933.2,1.6703]
[1743137621742,8.76113398,1933.8,1933.4,5.1722]
[1743137621946,8.76113398,1933.8,1933.4,5.17202]
[1743137622557,8.76113398,1933.8,1933.4,5.17205]
[1743137623077,8.76113398,1933.8,1933.3,5.17238]
[1743137623276,0.8761134,1933.7,1933.3,5.17238]
[1743137623574,0.8761134,1933.7,1933.2,6.84287]
[1743137623778,0.8761134,1933.7,1933.2,12.01548]
[1743137624146,0.8761134,1933.7,1933.3,5.17245]
[1743137624346,0.8761134,1933.7,1933.3,10.34484]
[1743137624548,0.8761134,1933.7,1933.3,5.17245]
[1743137624751,0.8761134,1933.7,1933.3,5.17237]
[1743137625066,1.03033979,1933.9,1933.4,0.05171682]
[1743137625280,1.03033979,1933.9,1933.8,6.82886]
[1743137625466,7.868,1934.1,1933.9,5.17064]
[1743137625667,7.868,1934.0,1933.9,5.17064]
[1743137626070,8.90270083,1934.0,1933.9,5.17064]
[1743137627152,0.54783438,1934.0,1933.9,10.4344337]
[1743137627377,2.54261977,1935.0,1933.9,10.4344337]
[1743137627378,2.54261977,1935.0,1934.8,5.16836]
[1743137627577,7.866,1934.9,1934.8,5.16836]
[1743137627785,7.866,1934.9,1934.5,5.16909]
[1743137628078,11.87815295,1934.9,1934.3,5.16966]
[1743137628279,11.87815295,1934.9,1934.1,1.5652]
[1743137628280,4.01215295,1934.7,1934.1,11.90577]
[1743137628451,4.01215295,1934.7,1934.0,5.17051]
[1743137628652,4.01215295,1934.5,1933.9,5.17089]
[1743137628859,4.01215295,1934.5,1933.7,5.17141]
[1743137629067,0.4012153,1934.4,1933.7,5.17123]
[1743137629261,7.865,1934.3,1933.8,5.17103]
[1743137629479,8.9103796,1934.3,1933.9,5.17073]
[1743137629653,12.92253255,1934.3,1933.8,5.17103]
[1743137629852,1.29225325,1934.2,1933.8,5.17103]
[1743137630052,1.29225325,1934.2,1933.9,5.17086]
[1743137630254,8.9103796,1934.3,1934.1,5.17022]
[1743137630453,8.9103796,1934.3,1933.9,5.17076]
[1743137630681,8.9103796,1934.3,1933.8,5.17116]
[1743137630882,0.89103796,1934.2,1933.5,1.5652]
[1743137631082,12.92253255,1934.3,1933.8,5.17095]
[1743137631083,8.9103796,1934.3,1933.8,5.17095]
[1743137631283,4.01215295,1934.1,1933.5,6.73713]
[1743137631476,4.01215295,1934.1,1933.5,5.17196]
[1743137632078,4.01215295,1934.1,1933.4,5.17219]
[1743137632387,4.01215295,1934.1,1933.4,10.34422]
[1743137632574,4.01215295,1933.9,1933.4,5.17221]
[1743137632787,5.02709099,1933.9,1933.4,5.17221]
[1743137633187,5.02709099,1933.9,1933.2,0.005]
[1743137633586,4.41336825,1934.0,1933.3,5.1723]
[1743137633783,1.04219235,1933.5,1933.3,5.1723]
[1743137633987,7.861,1933.4,1933.2,5.17756]
[1743137634193,7.861,1933.4,1933.3,5.1725]
[1743137637199,7.861,1933.4,1933.2,5.17756]
[1743137637406,7.861,1933.4,1933.2,10.3501]
[1743137637569,7.861,1933.4,1933.2,5.17754]
[1743137637898,7.861,1933.4,1933.3,5.1725]
[1743137638469,7.861,1933.4,1933.2,5.17754]
[1743137638793,7.861,1933.4,1933.2,10.35016]
[1743137638981,7.861,1933.4,1933.2,5.17754]
[1743137639184,7.861,1933.4,1933.3,5.1725]
[1743137639401,7.861,1933.4,1933.2,5.17754]
[1743137639599,7.861,1933.4,1933.2,10.32019]
[1743137639974,7.861,1933.4,1933.3,5.1725]
[1743137640297,8.6471,1933.4,1933.1,5.17301]
[1743137640689,8.6471,1933.4,1933.0,5.17316]
[1743137641371,8.6471,1933.4,1933.0,5.17312]
[1743137641564,8.6471,1933.4,1933.0,10.3463]
[1743137641785,0.86471,1933.3,1933.1,5.173]
[1743137641998,8.6471,1933.4,1933.0,5.17311]
[1743137642169,8.6471,1933.4,1933.1,5.17293]
[1743137642498,8.6471,1933.4,1933.2,5.17254]
[1743137642697,1.01736033,1933.6,1933.5,5.17196]
[1743137642996,7.854,1933.8,1933.7,5.17143]
[1743137643165,7.854,1933.8,1933.2,5.17256]
[1743137643369,7.854,1933.8,1933.1,5.14868935]
[1743137643370,8.6394,1933.8,1933.1,5.14868935]
[1743137643570,12.26448935,1933.8,1933.4,5.17216]
[1743137643868,8.6394,1933.8,1933.3,5.17226]
[1743137644063,12.26448935,1933.8,1933.3,5.17226]
[1743137644872,8.6394,1933.8,1933.4,5.17198]
[1743137645077,8.6394,1933.8,1933.4,5.17219]
[1743137645271,8.6394,1933.8,1933.3,5.17245]
[1743137645476,0.86394,1933.7,1933.2,5.17258]
[1743137645671,0.86394,1933.7,1933.0,5.1731]
[1743137645874,7.854,1933.8,1933.1,4.01476679]
[1743137646079,7.851,1933.7,1933.2,1.5043]
[1743137646281,7.851,1933.6,1933.4,5.17221]
[1743137646971,7.851,1933.6,1933.4,0.05171582]
[1743137647190,7.851,1933.6,1933.3,5.17238]
[1743137647394,7.851,1933.6,1933.3,5.17236]
[1743137647673,7.851,1933.6,1933.3,10.34462]
[1743137647998,7.851,1933.6,1933.4,5.17223]
[1743137648199,7.851,1933.6,1933.4,5.17211]
[1743137648709,7.851,1933.6,1933.5,5.17196]
[1743137649902,7.851,1933.6,1933.4,5.17208]
[1743137650099,7.851,1933.6,1933.5,5.17196]
[1743137650901,1.05561602,1933.7,1933.6,5.1717]
[1743137651275,8.90161602,1933.7,1933.6,5.1717]
[1743137652511,1.05561602,1933.7,1933.6,5.1717]
[1743137652678,8.90061602,1933.7,1933.6,5.1717]
[1743137654199,1.05561602,1933.7,1933.6,6.356636]
[1743137654515,7.843,1934.1,1934.0,5.17063]
[1743137655293,7.843,1934.1,1934.0,5.22233124]
[1743137655489,6.55738656,1935.0,1934.4,5.16939]
[1743137655689,3.0,1934.9,1934.5,5.16918]
[1743137655889,0.3,1934.8,1934.5,5.16914]
[1743137656094,0.3,1934.8,1934.5,10.33829]
[1743137656292,6.55738656,1935.0,1934.0,1.5057]
[1743137656293,7.842,1934.7,1934.0,1.5057]
[1743137656487,1.04736189,1934.6,1934.3,5.1697]
[1743137657085,1.04736189,1934.6,1934.1,5.17033]
[1743137657280,1.04736189,1934.6,1933.7,5.1714]
[1743137657281,5.06212868,1934.6,1933.9,5.17089]
[1743137657584,5.06212868,1934.6,1934.0,5.17043]
[1743137657585,0.50621287,1934.5,1934.0,5.17043]
[1743137657790,4.01476679,1934.4,1933.7,1.5337]
[1743137658117,4.01476679,1934.4,1933.9,5.17078]
[1743137658315,4.01476679,1934.4,1933.8,5.17111]
[1743137658487,0.40147668,1934.3,1933.9,5.17088]
[1743137658683,0.40147668,1934.3,1933.8,10.34213]
[1743137658922,0.40147668,1934.3,1933.5,5.17184]
[1743137658923,4.01476679,1934.2,1933.5,5.17184]
[1743137659132,7.838,1934.1,1933.6,5.17169]
[1743137659324,7.838,1934.1,1933.5,5.17183]
[1743137659521,0.7838,1934.0,1933.5,5.17183]
[1743137659922,0.7838,1934.0,1933.5,5.1718]
[1743137660125,0.7838,1934.0,1933.4,0.0517112]
[1743137660330,4.79856679,1934.0,1933.3,5.17249]
[1743137660512,0.47985668,1933.9,1933.1,1.5692]
[1743137660719,4.01476679,1933.8,1933.0,5.17312]
[1743137660924,4.01476679,1933.8,1933.2,10.34541]
[1743137661126,0.40147668,1933.7,1933.2,10.34541]
[1743137661317,0.40147668,1933.7,1933.2,10.34531]
[1743137661513,0.40147668,1933.7,1933.0,5.17323]
[1743137661729,0.40147668,1933.7,1933.2,5.17264]
[1743137662148,0.40147668,1933.7,1933.1,5.17282]
[1743137662526,0.40147668,1933.7,1933.2,5.17273]
[1743137665151,0.40147668,1933.7,1932.8,6.8578587]
[1743137665443,1.05606832,1933.8,1933.7,5.17143]
[1743137665607,8.88906832,1933.8,1933.6,5.17168]
[1743137666035,8.88906832,1933.8,1933.6,10.34322]
[1743137666346,8.88906832,1933.8,1933.7,5.17143]
[1743137666947,8.88906832,1933.8,1933.6,5.10168]
[1743137667243,9.77797515,1933.8,1933.5,5.17191]
[1743137667441,3.62399536,1933.6,1932.9,1.6483]
[1743137667647,1.94497515,1933.8,1933.3,5.17246]
[1743137667946,7.831,1933.7,1933.4,5.17221]
[1743137668523,7.831,1933.7,1933.2,5.17265]
[1743137668839,11.45499536,1933.7,1933.2,5.17265]
[1743137669039,11.45499536,1933.7,1933.2,10.34519]
[1743137669245,1.14549954,1933.6,1933.2,5.17254]
[1743137669545,1.14549954,1933.6,1933.1,5.17302]
[1743137669740,1.14549954,1933.6,1933.0,5.17305]
[1743137669741,3.62399536,1933.5,1933.0,5.17305]
[1743137669945,3.62399536,1933.5,1932.9,5.17342]
[1743137670254,3.62399536,1933.5,1933.0,5.17329]
[1743137670440,0.36239954,1933.4,1933.0,5.17329]
[1743137670619,0.36239954,1933.4,1932.8,0.1148587]
[1743137670823,0.36239954,1933.4,1933.0,5.17312]
[1743137671055,1.3845176,1933.4,1933.0,5.22484683]
[1743137671523,1.3845176,1933.4,1932.9,5.17345]
[1743137671730,1.3845176,1933.4,1932.8,0.1148587]
[1743137671731,3.62399536,1933.3,1932.8,0.1148587]
[1743137671933,3.62399536,1933.1,1932.8,0.1148587]
[1743137672131,6.62399536,1932.9,1932.8,0.1148587]
[1743137672851,10.79799072,1932.9,1932.8,0.1148587]
[1743137673167,11.19034984,1932.9,1932.8,0.1148587]
[1743137673369,13.09208482,1932.9,1932.8,0.1148587]
[1743137673657,13.09208482,1932.9,1932.5,0.005]
[1743137673658,8.72437,1932.6,1932.5,0.005]
[1743137673865,8.72437,1932.6,1932.4,0.005]
[1743137673866,8.72464,1932.5,1932.4,0.005]
[1743137674070,8.72464,1932.5,1932.1,0.05]
[1743137674071,5.72499,1932.4,1932.1,0.05]
[1743137674273,3.0,1931.7,1931.0,5.17843]
[1743137674473,3.62399536,1931.1,1931.0,5.17843]
[1743137674645,11.44899536,1931.1,1931.0,5.17843]
[1743137674840,11.85169454,1931.1,1930.9,5.17892]
[1743137675045,11.85169454,1931.1,1930.8,5.2940087]
[1743137675248,4.02669454,1930.9,1930.8,0.1148587]
[1743137675576,7.827,1931.6,1931.5,5.17732]
[1743137676348,7.827,1931.6,1931.5,6.70112]
[1743137676847,7.827,1931.6,1931.0,1.5238]
[1743137677049,4.02669454,1931.3,1931.0,1.5238]
[1743137677252,4.02669454,1931.3,1931.1,5.17813]
[1743137677556,4.02669454,1931.3,1931.2,5.17812]
[1743137677863,4.02669454,1931.5,1931.4,5.17734]
[1743137678069,4.02669454,1931.6,1931.5,5.17719]
[1743137678271,11.85169454,1931.6,1931.5,5.17719]
[1743137678648,7.825,1931.6,1931.4,5.17734]
[1743137679081,7.825,1931.6,1931.2,5.17789]
[1743137679281,7.825,1931.6,1931.4,5.17743]
[1743137679486,7.825,1931.6,1931.4,10.35479]
[1743137679662,1.02379346,1931.7,1931.5,5.17732]
[1743137679858,1.02379346,1931.7,1931.6,5.2288173]
[1743137680059,4.02669454,1932.5,1932.1,5.17566]
[1743137680272,7.824,1932.4,1932.2,0.05174957]
[1743137680469,2.42877348,1933.2,1931.9,5.17607]
[1743137680470,7.824,1932.3,1931.9,5.17607]
[1743137680674,7.824,1932.2,1931.8,5.17638]
[1743137680858,7.824,1932.2,1931.9,5.17605]
[1743137681055,7.824,1932.2,1932.0,5.17594]
[1743137681253,4.02669454,1933.0,1931.9,5.17605]
[1743137681254,4.02669454,1932.7,1932.3,5.17505]
[1743137681453,4.02669454,1932.9,1932.2,1.6061]
[1743137681658,8.22666945,1932.8,1932.4,5.17468]
[1743137681858,7.824,1932.8,1932.2,6.78138]
[1743137682086,7.824,1932.8,1932.5,5.17452]
[1743137682388,4.02669454,1933.1,1932.5,10.34905]
[1743137682584,7.823,1933.0,1932.7,5.174]
[1743137682986,28.52649954,1933.6,1932.7,5.174]
[1743137682987,7.822,1932.9,1932.8,5.22557329]
[1743137683287,7.822,1932.9,1932.8,5.17384]
[1743137683672,7.822,1933.1,1932.7,1.5497]
[1743137683866,7.822,1933.2,1933.0,5.17327]
[1743137684069,7.822,1933.2,1932.9,5.17339]
[1743137684070,7.821,1933.2,1932.9,5.17341]
[1743137684468,7.821,1933.2,1932.7,1.5497]
[1743137684680,4.80879454,1933.1,1932.4,6.72459]
[1743137684990,4.02669454,1933.1,1932.7,5.17395]
[1743137685286,4.02669454,1933.1,1932.7,5.17394]
[1743137685483,4.02669454,1933.1,1932.6,10.34851]
[1743137685689,4.02669454,1933.1,1932.6,5.17414]
[1743137685887,4.02669454,1932.9,1932.4,6.7245]
[1743137686061,4.02669454,1932.9,1932.5,5.17451]
[1743137686476,1.18476945,1933.1,1932.5,10.34897]
[1743137686680,1.18476945,1933.1,1932.4,1.5497]
[1743137686885,4.17497305,1932.9,1932.3,5.17506]
[1743137687087,0.41749731,1932.8,1932.4,5.17477]
[1743137687360,1.18476945,1933.1,1932.8,5.17378]
[1743137687588,1.0385732,1932.9,1932.5,5.1744]
[1743137687778,1.0385732,1932.9,1932.6,5.17435]
[1743137688084,1.0385732,1932.9,1932.5,5.1744]
[1743137688286,1.0385732,1932.9,1932.5,10.34893]
[1743137688683,1.0385732,1932.9,1932.0,5.17598]
[1743137688882,1.0385732,1932.9,1932.5,5.17441]
[1743137689089,1.0385732,1932.9,1932.6,5.17432]
[1743137689391,1.0385732,1932.9,1932.5,5.17441]
[1743137689589,1.0385732,1932.9,1932.3,5.17502]
[1743137689956,1.0385732,1932.9,1932.2,5.17544]
[1743137690160,1.0385732,1932.9,1932.6,5.17424]
[1743137690585,1.0385732,1932.9,1932.3,5.17505]
[1743137690890,1.0385732,1932.9,1932.6,5.17437]
[1743137691186,1.0385732,1932.9,1932.8,5.17384]
[1743137691187,8.8515732,1932.9,1932.8,5.17384]
[1743137691389,7.813,1932.9,1932.8,5.17384]
[1743137691590,7.813,1932.9,1932.7,5.17402]
[1743137691784,7.813,1932.9,1932.5,5.1744]
[1743137691972,7.813,1932.9,1932.6,5.17421]
[1743137692483,7.813,1932.9,1932.6,10.34839]
[1743137692687,7.813,1932.9,1932.7,5.17391]
[1743137693063,7.813,1932.9,1932.8,5.17384]
[1743137693263,7.813,1932.9,1932.6,5.17421]
[1743137693974,7.813,1932.9,1932.7,5.174]
[1743137694369,1.03743259,1933.2,1932.8,5.17384]
[1743137694569,1.03743259,1933.2,1933.0,10.3466]
[1743137694771,1.03743259,1933.2,1933.1,5.22475494]
[1743137694971,4.17497305,1934.1,1933.1,5.22475494]
[1743137695171,6.2638641,1934.7,1933.5,5.17182]
[1743137695172,4.17497305,1934.4,1933.5,5.17182]
[1743137695465,4.17497305,1934.4,1933.4,5.17219]
[1743137695666,4.17497305,1934.7,1933.7,5.1713]
[1743137695900,4.17497305,1934.7,1933.6,5.22325185]
[1743137695901,7.808,1933.8,1933.6,5.17152]
[1743137696096,7.808,1933.8,1933.3,5.17249]
[1743137696266,7.808,1933.8,1933.4,5.17209]
[1743137696702,7.808,1933.8,1933.4,5.17204]
[1743137696901,12.76877305,1933.8,1933.2,5.17254]
[1743137697074,12.76877305,1933.8,1933.2,5.17272]
[1743137697914,12.76877305,1933.8,1933.0,5.17324]
[1743137698123,1.27687731,1933.7,1933.1,5.1729]
[1743137698718,1.27687731,1933.7,1933.1,5.17285]
[1743137699022,1.27687731,1933.7,1933.3,5.17238]
[1743137699373,1.27687731,1933.7,1933.2,5.17266]
[1743137699801,1.27687731,1933.7,1933.3,0.05171877]
[1743137700521,1.27687731,1933.7,1933.0,10.34628]
[1743137700722,1.27687731,1933.7,1933.0,10.34631]
[1743137700874,1.27687731,1933.7,1933.0,5.17311]
[1743137701068,1.04962949,1933.5,1933.1,5.22462148]
[1743137701300,1.04962949,1933.5,1933.1,5.22459148]
[1743137701512,1.04962949,1933.5,1932.9,5.17332]
[1743137702076,1.04962949,1933.5,1933.0,5.17319]
[1743137702494,1.04962949,1933.5,1932.1,4.17497305]
[1743137702495,5.22460254,1933.5,1932.4,6.67788]
[1743137702704,0.52246025,1933.4,1932.8,5.17381]
[1743137703020,7.8,1933.3,1932.9,5.22514981]
[1743137703311,7.8,1933.3,1932.9,0.05172981]
[1743137703510,7.8,1933.3,1933.2,5.17277]
[1743137703711,7.799,1933.3,1933.2,5.17277]
[1743137704112,7.799,1933.4,1933.3,5.1725]
[1743137704517,7.798,1933.5,1933.4,5.17223]
[1743137705112,27.368,1934.5,1933.4,5.17223]
[1743137705113,4.17497305,1934.8,1933.8,5.17116]
[1743137705315,27.367,1935.0,1933.8,5.22285669]
[1743137705514,7.797,1934.3,1933.8,7.84756767]
[1743137706314,7.797,1934.3,1933.8,6.80816]
[1743137706823,1.02481428,1934.4,1933.8,6.85985817]
[1743137707014,0.0501,1935.1,1934.6,5.1689]
[1743137707183,7.795,1934.8,1934.6,5.1689]
[1743137707712,1.01797182,1934.8,1934.7,5.16863]
[1743137707913,8.81297182,1934.8,1934.7,5.16863]
[1743137708119,1.01797182,1934.8,1934.7,5.16863]
[1743137708283,7.794,1934.9,1934.8,5.16849]
[1743137708488,7.793,1934.9,1934.8,5.16849]
[1743137709898,0.0501,1935.4,1935.0,5.16779]
[1743137710103,7.791,1935.3,1935.0,5.16779]
[1743137710298,7.791,1935.3,1934.8,5.16822]
[1743137710597,8.57511,1935.3,1934.9,5.16809]
[1743137711221,8.57511,1935.3,1934.6,5.16886]
[1743137711401,1.03783995,1935.2,1934.5,10.33845]
[1743137711603,1.03783995,1935.2,1934.5,5.16916]
[1743137711917,0.0501,1935.1,1934.5,5.1691]
[1743137712121,0.6313913,1935.1,1934.2,5.17009]
[1743137712308,0.0501,1935.1,1934.6,5.16888]
[1743137712509,0.0501,1935.1,1934.5,5.16927]
[1743137712712,0.0501,1935.1,1934.6,5.16889]
[1743137712916,0.0501,1935.1,1934.5,10.33824]
[1743137713291,0.0501,1935.1,1934.5,10.33826]
[1743137713487,0.0501,1935.1,1934.3,5.1696]
[1743137713686,0.55,1935.0,1934.3,5.1696]
[1743137713920,0.55,1934.8,1934.0,1.5159]
[1743137714097,0.0501,1934.6,1934.0,5.17051]
[1743137714420,0.83361,1934.6,1934.2,5.17009]
[1743137714630,0.83361,1934.6,1934.2,5.16998]
[1743137715122,0.83361,1934.6,1934.2,5.16988]
[1743137715311,0.83361,1934.6,1934.0,5.17048]
[1743137715312,0.83361,1934.6,1934.1,5.1703]
[1743137715511,0.83361,1934.6,1934.1,10.34044]
[1743137715920,0.83361,1934.6,1933.8,5.17113]
[1743137715921,1.0267517,1934.5,1934.2,5.22172505]
[1743137716622,1.0267517,1934.5,1934.2,0.05169505]
[1743137716921,1.0267517,1934.5,1934.0,5.17063]
[1743137717127,1.0267517,1934.5,1934.4,5.16956]
[1743137717418,1.0267517,1934.5,1934.4,5.22125063]
[1743137717591,7.781,1934.6,1934.5,5.16929]
[1743137717795,7.781,1934.6,1934.5,5.22097484]
[1743137718096,7.781,1934.6,1934.5,5.16929]
[1743137718296,7.78,1934.9,1934.8,5.16849]
[1743137718725,0.0501,1935.5,1934.9,5.16803]
[1743137718908,7.779,1935.4,1935.0,5.16784]
[1743137719130,1.03091287,1935.1,1934.8,5.16844]
[1743137719332,1.03091287,1935.1,1935.0,5.16795]
[1743137719699,1.03091287,1935.1,1934.9,5.16814]
[1743137719900,1.03091287,1935.1,1934.7,5.16873]
[1743137720208,1.03091287,1935.1,1934.6,5.16891]
[1743137720409,1.03091287,1935.1,1934.7,5.16862]
[1743137720605,1.03091287,1935.1,1934.8,5.16836]
[1743137720795,1.03091287,1935.1,1934.7,5.16873]
[1743137720996,1.03091287,1935.1,1934.6,5.16882]
[1743137721327,1.03091287,1935.1,1934.6,5.16902]
[1743137721701,1.03091287,1935.1,1934.5,0.05168335]
[1743137721902,1.03091287,1935.1,1934.7,5.1685]
[1743137722125,1.03091287,1935.1,1934.4,1.5443]
[1743137722316,7.775,1935.0,1934.6,5.16885]
[1743137722624,7.775,1935.0,1934.6,5.16881]
[1743137723527,7.775,1935.0,1934.5,5.16929]
[1743137723749,7.775,1935.0,1934.4,1.5443]
[1743137723750,7.775,1935.0,1934.1,1.5988]
[1743137724029,7.775,1935.0,1934.5,5.16927]
[1743137724277,0.7775,1934.9,1934.3,5.16971]
[1743137724546,0.7775,1934.9,1934.2,5.16987]
[1743137724747,0.7775,1934.9,1934.4,5.16949]
[1743137724952,0.7775,1934.9,1934.3,5.16968]
[1743137725306,0.0501,1934.8,1934.1,6.76905]
[1743137725627,0.0501,1934.8,1934.0,5.17044]
[1743137725824,0.55,1934.7,1933.9,5.17084]
[1743137726138,0.55,1934.5,1933.7,5.1714]
[1743137726327,7.77,1934.4,1933.7,5.1714]
[1743137726527,7.77,1934.4,1933.7,10.34272]
[1743137726740,0.777,1934.3,1933.9,5.17071]
[1743137726905,0.777,1934.3,1933.8,5.17116]
[1743137728810,1.05818789,1934.2,1933.8,5.17116]
[1743137729605,1.05818789,1934.2,1933.7,5.17142]
[1743137729941,0.0501,1934.1,1933.5,5.17175]
[1743137730455,0.55,1934.0,1933.2,5.17274]
[1743137730744,3.55,1934.0,1933.2,10.3454]
[1743137730932,0.355,1933.9,1933.3,5.17244]
[1743137731225,7.766,1933.8,1933.3,5.17244]
[1743137732110,7.766,1933.8,1933.4,5.17217]
[1743137732434,7.766,1933.7,1933.6,5.17154]
[1743137732636,7.516,1933.7,1933.6,5.17154]
[1743137733010,7.516,1933.7,1933.5,5.17194]
[1743137733205,7.516,1933.7,1933.5,10.34371]
[1743137733520,0.0501,1934.1,1933.9,5.17076]
[1743137733710,7.765,1934.0,1933.9,5.22246477]
[1743137733905,7.765,1934.0,1933.9,5.17076]
[1743137734512,7.765,1934.0,1933.8,5.17115]
[1743137734739,7.765,1934.0,1933.7,5.17142]
[1743137735128,7.765,1934.0,1933.5,1.5951]
[1743137735444,7.765,1934.0,1933.7,5.17125]
[1743137735621,8.5415,1934.0,1933.5,10.34347]
[1743137735815,7.765,1934.0,1933.6,5.17168]
[1743137736021,7.765,1934.0,1933.6,5.17148]
[1743137736252,7.765,1934.0,1933.7,5.1714]
[1743137736412,0.0501,1933.9,1933.5,5.17176]
[1743137736609,0.0501,1933.9,1933.3,0.051714]
[1743137736819,0.0501,1933.9,1933.4,5.172]
[1743137737138,0.0501,1933.9,1933.6,5.17143]
[1743137737558,0.93388544,1933.9,1933.3,5.17232]
[1743137737756,4.17497305,1933.7,1932.9,6.7685]
[1743137738056,0.6001,1933.8,1933.2,5.17274]
[1743137738848,0.6001,1933.8,1933.0,5.17321]
[1743137739027,0.6001,1933.8,1933.1,5.17301]
[1743137739221,0.6001,1933.8,1932.8,5.17368]
[1743137739222,3.6001,1933.6,1932.8,5.17368]
[1743137739431,3.6001,1933.6,1932.9,5.17351]
[1743137739651,3.6001,1933.6,1932.7,5.17405]
[1743137740023,0.0501,1933.5,1932.7,5.17405]
[1743137740254,7.759,1933.4,1932.6,6.69787]
[1743137740423,0.7759,1933.3,1932.8,5.17383]
[1743137741571,0.7759,1933.3,1932.8,10.39926276]
[1743137741749,0.7759,1933.3,1932.2,1.5079]
[1743137741750,0.0501,1933.2,1932.2,1.5079]
[1743137741921,0.0501,1933.2,1932.4,10.34945]
[1743137742253,0.0501,1933.2,1932.4,5.17479]
[1743137742450,0.4877,1933.2,1932.2,1.5079]
[1743137742621,0.4877,1933.2,1932.5,5.17463]
[1743137742822,0.6001,1933.1,1932.1,0.05]
[1743137743043,0.6001,1933.1,1932.4,5.17476]
[1743137743255,0.6001,1933.1,1932.3,5.17514]
[1743137743256,1.6560985,1933.1,1932.2,5.17543]
[1743137743430,0.0501,1933.0,1932.2,10.35055]
[1743137744152,0.0501,1933.0,1932.2,5.17522]
[1743137744345,3.0501,1933.0,1932.2,5.17522]
[1743137744542,4.17497305,1932.8,1932.1,0.05]
[1743137744742,7.8061,1932.7,1932.1,0.05]
[1743137746159,1.01577652,1932.5,1932.1,0.05]
[1743137746358,4.22507305,1932.4,1932.1,0.05]
[1743137746523,0.0501,1932.2,1932.1,0.05]
[1743137746723,0.90511,1932.2,1932.1,0.05]
[1743137746922,0.55,1932.1,1930.8,1.6382587]
[1743137747158,4.17497305,1932.3,1930.8,1.6382587]
[1743137747332,1.01577652,1932.5,1931.6,5.17705]
[1743137747533,7.755,1932.4,1932.3,5.17504]
[1743137747757,4.61257305,1933.2,1932.5,5.17453]
[1743137748062,8.21525731,1933.1,1932.0,1.5718]
[1743137748442,0.46125731,1933.1,1932.6,10.34862]
[1743137748624,4.17497305,1933.4,1932.5,5.17451]
[1743137748625,7.753,1933.0,1932.5,5.17451]
[1743137748823,1.04160398,1932.8,1932.3,5.17515]
[1743137749235,1.04160398,1932.8,1932.5,10.34926]
[1743137749451,1.04160398,1932.8,1932.6,5.17431]
[1743137749650,1.04160398,1932.8,1932.7,5.1741]
[1743137749851,8.79360398,1932.8,1932.5,6.75132]
[1743137750076,8.79360398,1932.8,1932.3,5.17506]
[1743137750372,8.79360398,1932.8,1932.4,5.17477]
[1743137750738,8.79360398,1932.8,1932.0,5.1759]
[1743137750739,4.17497305,1932.6,1931.7,5.17666]
[1743137750952,4.17497305,1932.6,1931.8,5.17633]
[1743137751156,4.17497305,1932.6,1931.9,5.17611]
[1743137751351,0.41749731,1932.5,1932.0,5.17597]
[1743137751673,0.41749731,1932.5,1931.9,5.17611]
[1743137751880,1.05052431,1932.2,1931.7,5.17659]
[1743137752074,7.75,1932.1,1931.7,10.35325]
[1743137752371,7.75,1932.1,1932.0,5.17598]